[Event "Early-Titled-Tuesday-Blitz-July-09-2024"]
[Site "Chess.com"]
[Date "2024.07.09"]
[Round "2"]
[White "AlexandraSamaganova"]
[Black "SuperPower2011"]
[Result "0-1"]
[WhiteElo "2374"]
[BlackElo "2719"]
[TimeControl "180+1"]
[EndTime "8:18:24 PDT"]
[Termination "SuperPower2011 won on time"]

1. c4 {[%clk 0:03:00.9]} 1... Nf6 {[%clk 0:02:59.2]} 2. Nc3 {[%clk 0:02:59.5]}
2... e6 {[%clk 0:02:59.4]} 3. e4 {[%clk 0:02:58.8]} 3... d5 {[%clk 0:02:48.2]}
4. e5 {[%clk 0:02:58]} 4... d4 {[%clk 0:02:46.7]} 5. exf6 {[%clk 0:02:57.5]}
5... dxc3 {[%clk 0:02:47.2]} 6. bxc3 {[%clk 0:02:58.4]} 6... Qxf6 {[%clk
0:02:47.5]} 7. Nf3 {[%clk 0:02:59.3]} 7... Nc6 {[%clk 0:02:47.3]} 8. Bd3 {[%clk
0:02:59.5]} 8... Bd6 {[%clk 0:02:22.5]} 9. Be4 {[%clk 0:02:59.2]} 9... O-O
{[%clk 0:02:20.7]} 10. d4 {[%clk 0:02:59.1]} 10... Bf4 {[%clk 0:02:20.9]} 11.
O-O {[%clk 0:02:57.1]} 11... Ne7 {[%clk 0:02:20.1]} 12. Rb1 {[%clk 0:02:51.4]}
12... Bxc1 {[%clk 0:02:19.1]} 13. Qxc1 {[%clk 0:02:50.8]} 13... c6 {[%clk
0:02:19.4]} 14. Re1 {[%clk 0:02:49.5]} 14... Ng6 {[%clk 0:02:17.9]} 15. Bc2
{[%clk 0:02:37.2]} 15... Nf4 {[%clk 0:02:15.2]} 16. Re4 {[%clk 0:02:14.8]} 16...
g5 {[%clk 0:02:01.9]} 17. Nxg5 {[%clk 0:01:55.6]} 17... Ng6 {[%clk 0:02:02]} 18.
Nf3 {[%clk 0:01:46.4]} 18... b6 {[%clk 0:02:01.3]} 19. Qh6 {[%clk 0:01:41.4]}
19... Bb7 {[%clk 0:01:58.2]} 20. Ne5 {[%clk 0:01:23.2]} 20... Qg7 {[%clk
0:01:47.7]} 21. Qh5 {[%clk 0:01:21.7]} 21... c5 {[%clk 0:01:39.7]} 22. Rg4
{[%clk 0:01:14.2]} 22... f5 {[%clk 0:01:26.6]} 23. Rg5 {[%clk 0:00:56]} 23...
Rf6 {[%clk 0:01:23.5]} 24. d5 {[%clk 0:00:32]} 24... Re8 {[%clk 0:01:12.7]} 25.
d6 {[%clk 0:00:25.7]} 25... Rd8 {[%clk 0:01:09.7]} 26. Rd1 {[%clk 0:00:24.2]}
26... Kh8 {[%clk 0:01:01.2]} 27. Nf3 {[%clk 0:00:05.4]} 27... Bc6 {[%clk
0:00:40.3]} 28. Rg3 {[%clk 0:00:05.3]} 28... Be8 {[%clk 0:00:17.2]} 29. Qg5
{[%clk 0:00:05.3]} 29... h6 {[%clk 0:00:06.5]} 30. Qd2 {[%clk 0:00:04.7]} 30...
f4 {[%clk 0:00:06.2]} 31. Rg4 {[%clk 0:00:04.6]} 31... h5 {[%clk 0:00:06.8]} 32.
Rg5 {[%clk 0:00:04.6]} 32... Qh6 {[%clk 0:00:07.5]} 33. h4 {[%clk 0:00:03.9]}
33... Nxh4 {[%clk 0:00:04.3]} 34. Qd3 {[%clk 0:00:04.1]} 34... Nxf3+ {[%clk
0:00:04]} 35. Qxf3 {[%clk 0:00:04.5]} 35... Qxg5 {[%clk 0:00:04.5]} 36. Re1
{[%clk 0:00:03.9]} 36... Bg6 {[%clk 0:00:04.6]} 37. Bd1 {[%clk 0:00:03.7]} 37...
Rxd6 {[%clk 0:00:04.5]} 38. Qa8+ {[%clk 0:00:03.7]} 38... Kg7 {[%clk 0:00:04.1]}
39. Qxa7+ {[%clk 0:00:04]} 39... Rf7 {[%clk 0:00:04.7]} 40. Qb8 {[%clk
0:00:04.4]} 40... Rdd7 {[%clk 0:00:03.5]} 41. Qxb6 {[%clk 0:00:04.2]} 41... f3
{[%clk 0:00:03.8]} 42. g3 {[%clk 0:00:02.9]} 42... h4 {[%clk 0:00:04]} 43. Qxe6
{[%clk 0:00:03]} 43... hxg3 {[%clk 0:00:04.3]} 44. Qh3 {[%clk 0:00:01.9]} 44...
gxf2+ {[%clk 0:00:03.6]} 45. Kxf2 {[%clk 0:00:02.3]} 45... Rd2+ {[%clk
0:00:04.3]} 46. Kf1 {[%clk 0:00:02.5]} 46... Qg2+ {[%clk 0:00:04.6]} 47. Qxg2
{[%clk 0:00:02.3]} 47... fxg2+ {[%clk 0:00:05.5]} 48. Kg1 {[%clk 0:00:03.2]}
48... Rdf2 {[%clk 0:00:06.4]} 49. Be2 {[%clk 0:00:03]} 49... Be4 {[%clk
0:00:05.6]} 50. Rd1 {[%clk 0:00:02.4]} 50... Rxe2 {[%clk 0:00:05.5]} 51. Rc1
{[%clk 0:00:02.3]} 51... Rf1+ {[%clk 0:00:05.6]} 52. Rxf1 {[%clk 0:00:02.1]}
52... gxf1=Q+ {[%clk 0:00:06.5]} 53. Kxf1 {[%clk 0:00:03]} 53... Rxa2 {[%clk
0:00:07.4]} 54. Ke1 {[%clk 0:00:02.9]} 54... Bd3 {[%clk 0:00:08.3]} 0-1

[Event "Early-Titled-Tuesday-Blitz-July-09-2024"]
[Site "Chess.com"]
[Date "2024.07.09"]
[Round "2"]
[White "english_player_89"]
[Black "Adrian-thorsen"]
[Result "1-0"]
[WhiteElo "2527"]
[BlackElo "2321"]
[TimeControl "180+1"]
[EndTime "8:18:24 PDT"]
[Termination "english_player_89 won on time"]

1. e4 {[%clk 0:02:56.5]} 1... c5 {[%clk 0:02:57.6]} 2. Nf3 {[%clk 0:02:43.4]}
2... d6 {[%clk 0:02:56.6]} 3. g3 {[%clk 0:02:38.4]} 3... Nf6 {[%clk 0:02:41.1]}
4. Qe2 {[%clk 0:02:36.7]} 4... Nc6 {[%clk 0:02:39.8]} 5. c3 {[%clk 0:02:34.7]}
5... e5 {[%clk 0:02:36.1]} 6. Bg2 {[%clk 0:02:34.1]} 6... g6 {[%clk 0:02:31.2]}
7. O-O {[%clk 0:02:34]} 7... Bg7 {[%clk 0:02:30.4]} 8. Rd1 {[%clk 0:02:33.4]}
8... O-O {[%clk 0:02:30]} 9. h3 {[%clk 0:02:33]} 9... Ne8 {[%clk 0:02:22.2]} 10.
Na3 {[%clk 0:02:30.9]} 10... f5 {[%clk 0:02:21]} 11. d3 {[%clk 0:02:30.8]} 11...
f4 {[%clk 0:02:20.5]} 12. gxf4 {[%clk 0:02:28.9]} 12... exf4 {[%clk 0:02:20.2]}
13. d4 {[%clk 0:02:29]} 13... Qe7 {[%clk 0:02:19.2]} 14. Nc4 {[%clk 0:02:03.7]}
14... b5 {[%clk 0:02:15.8]} 15. Na3 {[%clk 0:01:59.3]} 15... a6 {[%clk
0:02:12.2]} 16. Nc2 {[%clk 0:01:43.1]} 16... g5 {[%clk 0:02:07.3]} 17. a4 {[%clk
0:01:41.9]} 17... b4 {[%clk 0:01:55]} 18. e5 {[%clk 0:01:34.9]} 18... dxe5
{[%clk 0:01:51.1]} 19. Qc4+ {[%clk 0:01:29.4]} 19... Kh8 {[%clk 0:01:40]} 20.
Qxc5 {[%clk 0:01:29.2]} 20... Qxc5 {[%clk 0:01:35.7]} 21. dxc5 {[%clk
0:01:28.9]} 21... Bb7 {[%clk 0:01:30.3]} 22. Nxg5 {[%clk 0:01:26.5]} 22... Rf6
{[%clk 0:01:25.5]} 23. Nxb4 {[%clk 0:01:18.3]} 23... Rg6 {[%clk 0:01:14]} 24. h4
{[%clk 0:01:03.6]} 24... Rc8 {[%clk 0:01:09.2]} 25. Nxc6 {[%clk 0:00:52.7]}
25... Bxc6 {[%clk 0:01:04.8]} 26. Bxc6 {[%clk 0:00:52.4]} 26... Rgxc6 {[%clk
0:01:02.9]} 27. b4 {[%clk 0:00:51.2]} 27... Rg6 {[%clk 0:00:56.1]} 28. Kf1
{[%clk 0:00:50.7]} 28... Nf6 {[%clk 0:00:49]} 29. Rd6 {[%clk 0:00:40.7]} 29...
Kg8 {[%clk 0:00:45.2]} 30. Rxa6 {[%clk 0:00:34.8]} 30... h6 {[%clk 0:00:42.8]}
31. Ne4 {[%clk 0:00:30.8]} 31... Rd8 {[%clk 0:00:35]} 32. Nxf6+ {[%clk
0:00:16.2]} 32... Bxf6 {[%clk 0:00:35.9]} 33. Rd6 {[%clk 0:00:15.7]} 33... Rc8
{[%clk 0:00:30.1]} 34. Ke2 {[%clk 0:00:15.5]} 34... Kf7 {[%clk 0:00:29.3]} 35.
a5 {[%clk 0:00:15.3]} 35... Rgg8 {[%clk 0:00:27.9]} 36. h5 {[%clk 0:00:14.5]}
36... e4 {[%clk 0:00:26.5]} 37. Bxf4 {[%clk 0:00:14]} 37... Bxc3 {[%clk
0:00:25.9]} 38. Rb1 {[%clk 0:00:14]} 38... Rg4 {[%clk 0:00:18.2]} 39. Bd2 {[%clk
0:00:12.5]} 39... Be5 {[%clk 0:00:17.4]} 40. Rxh6 {[%clk 0:00:11.3]} 40... Rd8
{[%clk 0:00:14.2]} 41. Be3 {[%clk 0:00:10.7]} 41... Bd4 {[%clk 0:00:09.3]} 42.
Rh7+ {[%clk 0:00:10.7]} 42... Ke6 {[%clk 0:00:08.6]} 43. a6 {[%clk 0:00:09.4]}
43... Bxe3 {[%clk 0:00:08.8]} 44. Kxe3 {[%clk 0:00:09.4]} 44... Rd3+ {[%clk
0:00:09.1]} 45. Ke2 {[%clk 0:00:09.2]} 45... Ra3 {[%clk 0:00:08.3]} 46. a7
{[%clk 0:00:09.1]} 46... Rf4 {[%clk 0:00:08.5]} 47. Rb2 {[%clk 0:00:09]} 47...
Kd5 {[%clk 0:00:07.6]} 48. b5 {[%clk 0:00:08.6]} 48... Kxc5 {[%clk 0:00:07.6]}
49. b6 {[%clk 0:00:09.1]} 49... e3 {[%clk 0:00:02.2]} 50. fxe3 {[%clk
0:00:08.8]} 50... Re4 {[%clk 0:00:02.6]} 51. Rc7+ {[%clk 0:00:08.3]} 51... Kd6
{[%clk 0:00:02.4]} 52. Rd2+ {[%clk 0:00:05.6]} 52... Ke6 {[%clk 0:00:01.9]} 53.
Rd3 {[%clk 0:00:06.2]} 53... Ra2+ {[%clk 0:00:01.2]} 54. Kf3 {[%clk 0:00:06.7]}
54... Rb4 {[%clk 0:00:01.3]} 55. b7 {[%clk 0:00:05.9]} 55... Rxa7 {[%clk
0:00:02.1]} 56. b8=Q {[%clk 0:00:06.2]} 56... Rxc7 {[%clk 0:00:03]} 57. Qxc7
{[%clk 0:00:06.5]} 57... Rf4+ {[%clk 0:00:03.9]} 58. Qxf4 {[%clk 0:00:06.3]}
58... Ke7 {[%clk 0:00:04]} 59. Rd6 {[%clk 0:00:06]} 59... Ke8 {[%clk 0:00:03.7]}
60. Qe5+ {[%clk 0:00:06.6]} 1-0

[Event "Early-Titled-Tuesday-Blitz-July-09-2024"]
[Site "Chess.com"]
[Date "2024.07.09"]
[Round "2"]
[White "lu1860"]
[Black "BashirovKemal"]
[Result "0-1"]
[WhiteElo "2044"]
[BlackElo "2686"]
[TimeControl "180+1"]
[EndTime "8:18:29 PDT"]
[Termination "BashirovKemal won by resignation"]

1. d4 {[%clk 0:03:00.9]} 1... d5 {[%clk 0:02:56.6]} 2. c4 {[%clk 0:03:00.1]}
2... e6 {[%clk 0:02:57]} 3. Nf3 {[%clk 0:02:59.5]} 3... Nf6 {[%clk 0:02:56.9]}
4. g3 {[%clk 0:02:58.6]} 4... Be7 {[%clk 0:02:57]} 5. Bg2 {[%clk 0:02:57.1]}
5... O-O {[%clk 0:02:57.3]} 6. O-O {[%clk 0:02:56.7]} 6... dxc4 {[%clk
0:02:57.7]} 7. Qc2 {[%clk 0:02:56.4]} 7... a6 {[%clk 0:02:57.1]} 8. a4 {[%clk
0:02:55.7]} 8... Bd7 {[%clk 0:02:47.3]} 9. Qxc4 {[%clk 0:02:55.2]} 9... Bc6
{[%clk 0:02:47.1]} 10. Bf4 {[%clk 0:02:53.8]} 10... Nbd7 {[%clk 0:02:45.4]} 11.
Nc3 {[%clk 0:02:52.3]} 11... Bd6 {[%clk 0:02:43.8]} 12. Bg5 {[%clk 0:02:46.2]}
12... h6 {[%clk 0:02:40.6]} 13. Bxf6 {[%clk 0:02:33.6]} 13... Nxf6 {[%clk
0:02:41.5]} 14. Qd3 {[%clk 0:02:32.5]} 14... Qe7 {[%clk 0:02:29]} 15. e4 {[%clk
0:02:03.6]} 15... e5 {[%clk 0:02:28.5]} 16. dxe5 {[%clk 0:01:48.8]} 16... Bxe5
{[%clk 0:02:29.4]} 17. Nxe5 {[%clk 0:01:48.6]} 17... Qxe5 {[%clk 0:02:30.3]} 18.
Rad1 {[%clk 0:01:47.1]} 18... Rfe8 {[%clk 0:02:19.6]} 19. Rfe1 {[%clk
0:01:45.6]} 19... Re7 {[%clk 0:02:04]} 20. Qd4 {[%clk 0:01:40.1]} 20... Qxd4
{[%clk 0:01:57.4]} 21. Rxd4 {[%clk 0:01:39.8]} 21... Rae8 {[%clk 0:01:58.1]} 22.
f3 {[%clk 0:01:34.8]} 22... Kf8 {[%clk 0:01:51.6]} 23. Red1 {[%clk 0:01:32.5]}
23... Nd7 {[%clk 0:01:42.5]} 24. b4 {[%clk 0:01:20.9]} 24... Nb6 {[%clk
0:01:19.2]} 25. a5 {[%clk 0:00:57.6]} 25... Na4 {[%clk 0:01:19]} 26. Nxa4 {[%clk
0:00:52.6]} 26... Bxa4 {[%clk 0:01:19.9]} 27. R1d2 {[%clk 0:00:51.7]} 27... Re5
{[%clk 0:01:12.1]} 28. Rc4 {[%clk 0:00:44]} 28... Bc6 {[%clk 0:01:08.4]} 29. f4
{[%clk 0:00:39.2]} 29... Rb5 {[%clk 0:01:06.8]} 30. e5 {[%clk 0:00:38.7]} 30...
Bxg2 {[%clk 0:01:06.5]} 31. Kxg2 {[%clk 0:00:39.6]} 31... c6 {[%clk 0:01:04.8]}
32. Rdd4 {[%clk 0:00:25.3]} 32... Ke7 {[%clk 0:01:04.7]} 33. Rc5 {[%clk
0:00:24.4]} 33... Rxc5 {[%clk 0:00:57.2]} 34. bxc5 {[%clk 0:00:25.3]} 34... f6
{[%clk 0:00:52]} 35. exf6+ {[%clk 0:00:21.6]} 35... Kxf6 {[%clk 0:00:50.5]} 36.
Kf3 {[%clk 0:00:20.4]} 36... Re1 {[%clk 0:00:49.4]} 37. Rb4 {[%clk 0:00:20.3]}
37... Re7 {[%clk 0:00:47.2]} 38. Rd4 {[%clk 0:00:19.3]} 38... Kf7 {[%clk
0:00:41.1]} 39. Rb4 {[%clk 0:00:19.3]} 39... Ke6 {[%clk 0:00:39.1]} 40. Rd4
{[%clk 0:00:18.2]} 40... Rf7 {[%clk 0:00:33]} 41. Rd6+ {[%clk 0:00:17.8]} 41...
Ke7 {[%clk 0:00:32.1]} 42. Rd4 {[%clk 0:00:17.9]} 42... Kf6 {[%clk 0:00:28]} 43.
Ke4 {[%clk 0:00:17.2]} 43... Re7+ {[%clk 0:00:26.2]} 44. Kf3 {[%clk 0:00:17]}
44... g5 {[%clk 0:00:26.2]} 45. fxg5+ {[%clk 0:00:16.8]} 45... hxg5 {[%clk
0:00:27.1]} 46. Rb4 {[%clk 0:00:16.8]} 46... Rd7 {[%clk 0:00:24.8]} 47. Ke4
{[%clk 0:00:15.9]} 47... Ke6 {[%clk 0:00:24.1]} 48. h4 {[%clk 0:00:14.8]} 48...
gxh4 {[%clk 0:00:24]} 49. gxh4 {[%clk 0:00:15.7]} 49... Rh7 {[%clk 0:00:24.3]}
50. Kd3 {[%clk 0:00:15.4]} 50... Kd5 {[%clk 0:00:24.3]} 51. Rc4 {[%clk
0:00:15.5]} 51... Re7 {[%clk 0:00:19.3]} 52. h5 {[%clk 0:00:14.4]} 52... Rh7
{[%clk 0:00:19.4]} 53. Rb4 {[%clk 0:00:13.3]} 53... Kxc5 {[%clk 0:00:19.4]} 54.
Rh4 {[%clk 0:00:11.3]} 54... Kb5 {[%clk 0:00:19.5]} 55. h6 {[%clk 0:00:11.4]}
55... Kxa5 {[%clk 0:00:19.8]} 56. Ke4 {[%clk 0:00:12]} 56... b5 {[%clk 0:00:19]}
57. Kf5 {[%clk 0:00:12.6]} 57... b4 {[%clk 0:00:19.4]} 58. Kg6 {[%clk
0:00:13.2]} 58... Rh8 {[%clk 0:00:18.9]} 59. Kg7 {[%clk 0:00:13.3]} 59... Rxh6
{[%clk 0:00:17.8]} 60. Kxh6 {[%clk 0:00:13.8]} 60... Ka4 {[%clk 0:00:13.9]} 61.
Kg5 {[%clk 0:00:14]} 61... Ka3 {[%clk 0:00:13.3]} 62. Kf4 {[%clk 0:00:14.1]}
62... b3 {[%clk 0:00:13.9]} 63. Rh1 {[%clk 0:00:10.5]} 63... b2 {[%clk
0:00:13.5]} 64. Ke3 {[%clk 0:00:10.8]} 64... Ka2 {[%clk 0:00:14.1]} 65. Rh2
{[%clk 0:00:09.5]} 65... Ka1 {[%clk 0:00:13.5]} 66. Rh5 {[%clk 0:00:09.4]} 66...
b1=Q {[%clk 0:00:13.1]} 67. Ra5+ {[%clk 0:00:10]} 67... Qa2 {[%clk 0:00:12.3]}
0-1

[Event "Early-Titled-Tuesday-Blitz-July-09-2024"]
[Site "Chess.com"]
[Date "2024.07.09"]
[Round "2"]
[White "chess_peak"]
[Black "kyawmyataung2005"]
[Result "1-0"]
[WhiteElo "2538"]
[BlackElo "2345"]
[TimeControl "180+1"]
[EndTime "8:18:29 PDT"]
[Termination "chess_peak won on time"]

1. d4 {[%clk 0:03:00.9]} 1... Nf6 {[%clk 0:02:58.6]} 2. c4 {[%clk 0:03:00.5]}
2... e6 {[%clk 0:02:57.6]} 3. Nf3 {[%clk 0:03:00.7]} 3... d5 {[%clk 0:02:56]} 4.
Nc3 {[%clk 0:02:59.7]} 4... Be7 {[%clk 0:02:54.6]} 5. Bf4 {[%clk 0:02:59.2]}
5... O-O {[%clk 0:02:49.6]} 6. e3 {[%clk 0:02:59.3]} 6... c6 {[%clk 0:02:49.5]}
7. h3 {[%clk 0:02:57.9]} 7... Nbd7 {[%clk 0:02:47.8]} 8. Rc1 {[%clk 0:02:56.6]}
8... b6 {[%clk 0:02:39.1]} 9. cxd5 {[%clk 0:02:43.8]} 9... exd5 {[%clk
0:02:38.8]} 10. Bd3 {[%clk 0:02:40.4]} 10... Bb7 {[%clk 0:02:37.8]} 11. O-O
{[%clk 0:02:39.1]} 11... c5 {[%clk 0:02:37.7]} 12. Ne5 {[%clk 0:02:38]} 12...
Ne4 {[%clk 0:02:09.8]} 13. Qc2 {[%clk 0:01:55.9]} 13... cxd4 {[%clk 0:01:37.5]}
14. Nxe4 {[%clk 0:01:40.1]} 14... Nxe5 {[%clk 0:01:11.9]} 15. Bxe5 {[%clk
0:01:08.9]} 15... dxe4 {[%clk 0:00:46.1]} 16. Bxe4 {[%clk 0:01:08.5]} 16... Bxe4
{[%clk 0:00:40.2]} 17. Qxe4 {[%clk 0:01:09.4]} 17... dxe3 {[%clk 0:00:39.2]} 18.
Qxe3 {[%clk 0:00:53.2]} 18... Bf6 {[%clk 0:00:24.2]} 19. Rfd1 {[%clk 0:00:52]}
19... Qe7 {[%clk 0:00:21.3]} 20. Bxf6 {[%clk 0:00:36.4]} 20... Qxf6 {[%clk
0:00:22.2]} 21. Rc3 {[%clk 0:00:26.7]} 21... Rad8 {[%clk 0:00:20]} 22. Rxd8
{[%clk 0:00:17.5]} 22... Rxd8 {[%clk 0:00:20.9]} 23. g3 {[%clk 0:00:17.8]} 23...
h6 {[%clk 0:00:19.6]} 24. Kg2 {[%clk 0:00:17.9]} 24... a5 {[%clk 0:00:16.7]} 25.
Rb3 {[%clk 0:00:16.5]} 25... Rd6 {[%clk 0:00:14.6]} 26. Qf3 {[%clk 0:00:16.1]}
26... Qxf3+ {[%clk 0:00:13.1]} 27. Kxf3 {[%clk 0:00:16.5]} 27... Kf8 {[%clk
0:00:13.2]} 28. Ke4 {[%clk 0:00:17.1]} 28... Ke7 {[%clk 0:00:13.1]} 29. Ke5
{[%clk 0:00:14.5]} 29... g6 {[%clk 0:00:11.5]} 30. f4 {[%clk 0:00:11.9]} 30...
Kd7 {[%clk 0:00:11.3]} 31. f5 {[%clk 0:00:11.1]} 31... f6+ {[%clk 0:00:10.7]}
32. Ke4 {[%clk 0:00:11.2]} 32... g5 {[%clk 0:00:09.9]} 33. Kf3 {[%clk
0:00:11.5]} 33... h5 {[%clk 0:00:10]} 34. g4 {[%clk 0:00:09]} 34... h4 {[%clk
0:00:08.2]} 35. Ke4 {[%clk 0:00:09.2]} 35... Kc6 {[%clk 0:00:07.6]} 36. Rc3+
{[%clk 0:00:09.1]} 36... Kd7 {[%clk 0:00:08]} 37. Rb3 {[%clk 0:00:06.3]} 37...
Kc6 {[%clk 0:00:08]} 38. Rc3+ {[%clk 0:00:06.5]} 38... Kd7 {[%clk 0:00:08]} 39.
Rd3 {[%clk 0:00:05.9]} 39... Rxd3 {[%clk 0:00:04.6]} 40. Kxd3 {[%clk 0:00:06.8]}
40... Kc6 {[%clk 0:00:04]} 41. Kc4 {[%clk 0:00:05.7]} 41... b5+ {[%clk
0:00:04.3]} 42. Kd4 {[%clk 0:00:06.1]} 42... Kd6 {[%clk 0:00:04.9]} 43. b3
{[%clk 0:00:04]} 43... Kc6 {[%clk 0:00:04.8]} 44. a3 {[%clk 0:00:03.6]} 44...
Kd6 {[%clk 0:00:04.7]} 45. a4 {[%clk 0:00:03.3]} 45... bxa4 {[%clk 0:00:04.5]}
46. bxa4 {[%clk 0:00:03.6]} 46... Kc6 {[%clk 0:00:04]} 47. Kc4 {[%clk
0:00:04.2]} 47... Kb6 {[%clk 0:00:03.3]} 48. Kd5 {[%clk 0:00:04.6]} 48... Ka6
{[%clk 0:00:03.4]} 49. Ke6 {[%clk 0:00:04.7]} 49... Kb6 {[%clk 0:00:03.8]} 50.
Kxf6 {[%clk 0:00:05.3]} 50... Kc5 {[%clk 0:00:04.7]} 51. Kxg5 {[%clk 0:00:05.9]}
51... Kb4 {[%clk 0:00:05.6]} 52. f6 {[%clk 0:00:06.6]} 52... Kxa4 {[%clk
0:00:06.5]} 53. f7 {[%clk 0:00:07.5]} 53... Kb3 {[%clk 0:00:07.4]} 54. f8=Q
{[%clk 0:00:08.4]} 54... a4 {[%clk 0:00:08.3]} 55. Kxh4 {[%clk 0:00:08.3]} 55...
a3 {[%clk 0:00:09.2]} 56. Qg8+ {[%clk 0:00:08.7]} 56... Kb2 {[%clk 0:00:09.2]}
57. g5 {[%clk 0:00:09.3]} 57... a2 {[%clk 0:00:09.4]} 58. Qxa2+ {[%clk 0:00:10]}
1-0

[Event "Early-Titled-Tuesday-Blitz-July-09-2024"]
[Site "Chess.com"]
[Date "2024.07.09"]
[Round "2"]
[White "GiorgianBarbosa"]
[Black "luggevoila"]
[Result "0-1"]
[WhiteElo "2495"]
[BlackElo "2317"]
[TimeControl "180+1"]
[EndTime "8:18:29 PDT"]
[Termination "luggevoila won by checkmate"]

1. b3 {[%clk 0:02:59.8]} 1... a5 {[%clk 0:02:58.4]} 2. Bb2 {[%clk 0:03:00.7]}
2... a4 {[%clk 0:02:58.8]} 3. bxa4 {[%clk 0:03:00.3]} 3... Rxa4 {[%clk
0:02:51.5]} 4. e3 {[%clk 0:02:58.2]} 4... Nf6 {[%clk 0:02:50.8]} 5. c4 {[%clk
0:02:56.5]} 5... Ra8 {[%clk 0:02:50.5]} 6. Bxf6 {[%clk 0:02:52.8]} 6... gxf6
{[%clk 0:02:47.4]} 7. Nf3 {[%clk 0:02:51.8]} 7... Rg8 {[%clk 0:02:45.6]} 8. g3
{[%clk 0:02:51.2]} 8... b6 {[%clk 0:02:34.3]} 9. Bg2 {[%clk 0:02:50.3]} 9... Bb7
{[%clk 0:02:34.5]} 10. O-O {[%clk 0:02:51.2]} 10... e6 {[%clk 0:02:28.3]} 11. d4
{[%clk 0:02:47]} 11... Nc6 {[%clk 0:02:18.6]} 12. Nc3 {[%clk 0:02:33.3]} 12...
Bb4 {[%clk 0:02:14.9]} 13. Qc2 {[%clk 0:02:29.4]} 13... f5 {[%clk 0:02:12.3]}
14. d5 {[%clk 0:02:21.4]} 14... Ne7 {[%clk 0:02:07.5]} 15. Nd4 {[%clk
0:02:16.3]} 15... Qc8 {[%clk 0:02:01.9]} 16. e4 {[%clk 0:01:54.5]} 16... f4
{[%clk 0:01:56.9]} 17. e5 {[%clk 0:01:46.6]} 17... Bxc3 {[%clk 0:01:31.3]} 18.
Qxc3 {[%clk 0:01:47.5]} 18... exd5 {[%clk 0:01:18.1]} 19. Qf3 {[%clk 0:01:45]}
19... Ra4 {[%clk 0:01:05.4]} 20. Rac1 {[%clk 0:01:28.5]} 20... Ba8 {[%clk
0:00:56.8]} 21. Nb5 {[%clk 0:00:53.9]} 21... dxc4 {[%clk 0:00:44.5]} 22. Qxf4
{[%clk 0:00:51.1]} 22... Bxg2 {[%clk 0:00:42.5]} 23. Kxg2 {[%clk 0:00:52]} 23...
Qb7+ {[%clk 0:00:32.4]} 24. Kg1 {[%clk 0:00:51.3]} 24... Qc6 {[%clk 0:00:18.5]}
25. Nd4 {[%clk 0:00:49.9]} 25... Qc5 {[%clk 0:00:13.7]} 26. Nf5 {[%clk
0:00:30.7]} 26... Nxf5 {[%clk 0:00:12.2]} 27. Qxf5 {[%clk 0:00:31.6]} 27... Rxa2
{[%clk 0:00:10.7]} 28. Rfd1 {[%clk 0:00:25.2]} 28... Qc6 {[%clk 0:00:07.4]} 29.
Qxh7 {[%clk 0:00:16.6]} 29... Rf8 {[%clk 0:00:07.2]} 30. Qf5 {[%clk 0:00:16.1]}
30... b5 {[%clk 0:00:07.5]} 31. Qf4 {[%clk 0:00:13.5]} 31... c3 {[%clk
0:00:06.1]} 32. h4 {[%clk 0:00:10.2]} 32... c2 {[%clk 0:00:06.2]} 33. Re1 {[%clk
0:00:09]} 33... Qc5 {[%clk 0:00:04.4]} 34. h5 {[%clk 0:00:08.4]} 34... b4 {[%clk
0:00:04.8]} 35. Qf3 {[%clk 0:00:06.1]} 35... Qc4 {[%clk 0:00:04]} 36. Re3 {[%clk
0:00:03.6]} 36... Rb2 {[%clk 0:00:02.7]} 37. Kg2 {[%clk 0:00:04]} 37... Rb1
{[%clk 0:00:03.1]} 38. Ree1 {[%clk 0:00:03.8]} 38... Rxc1 {[%clk 0:00:03.5]} 39.
Rxc1 {[%clk 0:00:04.7]} 39... b3 {[%clk 0:00:04.4]} 40. Qa8+ {[%clk 0:00:04.5]}
40... Ke7 {[%clk 0:00:04.9]} 41. Qa3+ {[%clk 0:00:04.9]} 41... d6 {[%clk
0:00:04.2]} 42. Qa7 {[%clk 0:00:04.7]} 42... b2 {[%clk 0:00:03.3]} 43. Re1
{[%clk 0:00:02.9]} 43... c1=Q {[%clk 0:00:03]} 44. exd6+ {[%clk 0:00:03.4]}
44... Kf6 {[%clk 0:00:02.1]} 45. Re3 {[%clk 0:00:01.7]} 45... Qxe3 {[%clk
0:00:02]} 46. fxe3 {[%clk 0:00:02.6]} 46... b1=Q {[%clk 0:00:02.5]} 47. Qxc7
{[%clk 0:00:02.9]} 47... Qxc7 {[%clk 0:00:02.3]} 48. Kh3 {[%clk 0:00:03.8]}
48... Rc8 {[%clk 0:00:02.9]} 49. dxc7 {[%clk 0:00:03.8]} 49... Rxc7 {[%clk
0:00:03.8]} 50. h6 {[%clk 0:00:04.2]} 50... Rc1 {[%clk 0:00:04.7]} 51. g4 {[%clk
0:00:05.1]} 51... Rh1+ {[%clk 0:00:05.1]} 52. Kg3 {[%clk 0:00:06]} 52... Qg1+
{[%clk 0:00:05.3]} 53. Kf4 {[%clk 0:00:06.9]} 53... Rh4 {[%clk 0:00:04.6]} 54.
Ke4 {[%clk 0:00:06.9]} 54... Qxg4+ {[%clk 0:00:04.8]} 55. Kd3 {[%clk 0:00:07]}
55... Rxh6 {[%clk 0:00:05.4]} 56. e4 {[%clk 0:00:07.2]} 56... Qd7+ {[%clk
0:00:05.9]} 57. Ke3 {[%clk 0:00:07.4]} 57... Ke5 {[%clk 0:00:06.3]} 58. Kf3
{[%clk 0:00:07.4]} 58... Qd3+ {[%clk 0:00:06.4]} 59. Kg2 {[%clk 0:00:07.9]}
59... Rg6+ {[%clk 0:00:06.3]} 60. Kh2 {[%clk 0:00:08.7]} 60... Qe2+ {[%clk
0:00:05.9]} 61. Kh1 {[%clk 0:00:09.6]} 61... Qg2# {[%clk 0:00:06.3]} 0-1